bitfinex/quotes_SOLUSD_20250728
["timestamp","ask_amount","ask_price","bid_price","bid_amount"]
[1753732416244,7.86062736,184.99,184.96,8.13368592]
[1753732416443,3.93031368,184.98,184.95,45.9874605]
[1753732416657,3.93031368,184.97,184.96,8.13368592]
[1753732416846,3.93031368,184.97,184.96,13.54026031]
[1753732417281,3.93031368,184.97,184.96,30.32494428]
[1753732417452,0.03,185.03,184.97,16.78468397]
[1753732417652,7.86429246,185.02,184.99,24.91836989]
[1753732417846,0.03,185.03,184.99,24.91836989]
[1753732417847,7.86429246,185.01,185.0,40.02]
[1753732418262,7.86429246,185.01,184.98,0.54059898]
[1753732418575,3.93214623,185.0,184.99,40.02]
[1753732418941,3.93214623,185.0,184.97,13.53996351]
[1753732419154,0.66,185.01,184.97,13.53996351]
[1753732419155,0.66,185.01,184.99,40.0]
[1753732419348,3.93727687,185.0,184.99,40.0]
[1753732420386,3.93727687,185.0,184.99,96.32406749]
[1753732420556,0.03,185.03,185.0,16.78468397]
[1753732420758,0.03,185.03,185.01,48.65419724]
[1753732420759,3.94185379,185.02,185.01,48.65419724]
[1753732420958,0.03,185.03,185.01,48.65419724]
[1753732421864,0.03,185.03,185.01,40.52051132]
[1753732422875,0.03,185.03,185.01,0.54051132]
[1753732423045,0.03,185.03,185.02,39.92]
[1753732423244,0.03,185.03,185.02,90.83836989]
[1753732423443,1e-08,185.06,185.05,42.78468397]
[1753732423644,1e-08,185.06,185.05,65.72308751]
[1753732424244,1e-08,185.06,185.05,71.12703238]
[1753732425661,0.03,185.08,185.05,71.12703238]
[1753732425662,1e-08,185.08,185.07,43.06900711]
[1753732425871,1e-08,185.08,185.07,51.74302911]
[1753732426050,1e-08,185.08,185.07,25.74302911]
[1753732426256,1e-08,185.08,185.07,71.10639]
[1753732426453,1e-08,185.08,185.07,57.28502005]
[1753732426651,1e-08,185.08,185.07,25.45870597]
[1753732426864,1e-08,185.08,185.07,65.41870597]
[1753732427060,1e-08,185.08,185.07,57.28502005]
[1753732427272,0.66000001,185.08,185.07,57.28502005]
[1753732427449,0.66000001,185.08,185.07,56.74468397]
[1753732427847,0.66000001,185.08,185.07,26.0]
[1753732428048,12.73884127,185.08,185.01,8.13368592]
[1753732428249,8.13368592,185.06,185.02,45.88529245]
[1753732428565,1e-08,185.08,185.05,26.0]
[1753732428774,3.94560189,185.07,185.06,39.94]
[1753732429283,4.60560189,185.07,185.06,39.94]
[1753732429482,0.66,185.07,185.06,39.94]
[1753732429987,1e-08,185.08,185.07,17.06900711]
[1753732430151,1e-08,185.08,185.07,51.45870597]
[1753732430352,1e-08,185.08,185.07,32.71489]
[1753732430982,0.1,185.18,185.17,42.78468397]
[1753732431152,0.1,185.18,185.17,91.20269303]
[1753732431353,0.1,185.18,185.17,51.74273731]
[1753732431679,0.76,185.18,185.17,40.0]
[1753732432461,8.89368592,185.18,185.14,26.0]
[1753732432657,4.60534382,185.17,185.14,39.96]
[1753732432950,8.13368592,185.15,185.14,39.96]
[1753732433150,0.66,185.15,185.14,39.96]
[1753732433350,8.79368592,185.15,185.14,39.96]
[1753732433580,0.66,185.15,185.14,39.96]
[1753732433753,0.1,185.18,185.14,39.96]
[1753732433956,12.74167708,185.17,185.14,39.96]
[1753732434165,0.66,185.16,185.14,39.96]
[1753732434483,8.79368592,185.15,185.14,39.96]
[1753732434661,0.66,185.15,185.14,39.96]
[1753732435259,0.76,185.18,185.14,39.96]
[1753732435459,8.89368592,185.18,185.14,39.96]
[1753732435675,8.89368592,185.18,185.14,45.36130372]
[1753732436775,8.89368592,185.18,185.14,39.96]
[1753732437082,8.79368592,185.17,185.14,39.96]
[1753732440092,0.66,185.16,185.14,39.96]
[1753732440982,0.66,185.16,185.12,56.32024914]
[1753732441298,8.13368592,185.16,185.11,0.54021932]
[1753732441532,5.40047468,185.17,185.12,39.8]
[1753732441659,5.40047468,185.17,185.08,16.78468397]
[1753732441660,3.9463157,185.16,185.13,39.8]
[1753732441861,0.65,185.15,185.12,39.8]
[1753732443158,8.13368592,185.13,185.12,39.78]
[1753732443472,8.78368592,185.13,185.12,39.78]
[1753732444567,14.18529559,185.13,185.12,39.78]
[1753732445092,14.18529559,185.13,185.1,39.76]
[1753732445276,8.13368592,185.11,185.09,39.74]
[1753732445486,0.65,185.11,185.09,39.74]
[1753732445778,8.78368592,185.11,185.09,39.74]
[1753732445991,8.13368592,185.12,185.09,39.74]
[1753732446483,5.40137332,185.14,185.09,39.74]
[1753732446484,8.78368592,185.11,185.09,39.74]
[1753732446666,5.40134503,185.14,185.09,39.74]
[1753732446667,0.65,185.14,185.09,39.74]
[1753732446866,8.78368592,185.14,185.09,39.74]
[1753732447171,8.13368592,185.15,185.1,8.13368592]
[1753732447378,8.78368592,185.17,185.12,16.78468397]
[1753732447582,0.65,185.16,185.13,39.72]
[1753732447768,8.13368592,185.14,185.1,16.78468397]
[1753732447967,8.78368592,185.14,185.11,39.72]
[1753732448265,8.13368592,185.15,185.11,45.12216725]
[1753732448463,8.13368592,185.16,185.11,53.79607249]
[1753732448770,8.13368592,185.16,185.11,14.07607249]
[1753732449285,8.13368592,185.16,185.12,39.7]
[1753732449481,8.78368592,185.16,185.12,39.7]
[1753732450483,0.65,185.15,185.11,0.54021932]
[1753732450786,8.78368592,185.15,185.12,39.66]
[1753732451094,0.65,185.14,185.13,39.66]
[1753732451272,8.23368592,185.18,185.13,47.77368592]
[1753732451472,8.23368592,185.18,185.13,48.31384688]
[1753732451473,0.65,185.17,185.13,48.31384688]
[1753732451681,8.78368592,185.17,185.13,40.18016096]
[1753732451886,0.65,185.17,185.13,40.18016096]
[1753732452189,8.13368592,185.16,185.13,40.18016096]
[1753732452398,8.78368592,185.15,185.14,39.64]
[1753732452574,0.65,185.15,185.14,39.64]
[1753732452974,8.13368592,185.16,185.14,39.64]
[1753732453189,0.65,185.15,185.14,39.64]
[1753732453378,1e-08,185.18,185.17,43.06900711]
[1753732453573,1e-08,185.18,185.17,91.40273731]
[1753732454393,1e-08,185.18,185.17,96.80318014]
[1753732454588,1e-08,185.18,185.17,56.858857]
[1753732455093,1e-08,185.18,185.17,26.0]
[1753732455295,1e-08,185.18,185.14,39.78]
[1753732455296,0.65000001,185.18,185.14,8.13368592]
[1753732455482,0.65,185.17,185.14,34.13368592]
[1753732456515,0.65,185.17,185.14,39.53497998]
[1753732456698,0.65,185.17,185.14,26.0]
[1753732457013,0.65,185.16,185.14,34.13368592]
[1753732457181,0.65,185.16,185.14,26.0]
[1753732459196,1e-08,185.18,185.14,26.0]
[1753732459502,0.65000001,185.18,185.14,26.0]
[1753732459807,0.65000001,185.18,185.14,31.40128373]
[1753732459977,0.65000001,185.18,185.14,39.53496965]
[1753732460178,0.65000001,185.18,185.15,8.13368592]
[1753732460179,1e-08,185.18,185.15,8.13368592]
[1753732460400,1e-08,185.18,185.14,39.53496965]
[1753732460616,0.65000001,185.18,185.14,39.53496965]
[1753732461297,0.65000001,185.18,185.14,31.40128373]
[1753732461496,0.65000001,185.18,185.14,39.53496965]
[1753732462200,8.13368592,185.16,185.14,26.0]
[1753732462418,0.65,185.15,185.12,48.18654627]
[1753732462619,1e-08,185.18,185.12,48.18654627]
[1753732462620,0.65,185.16,185.13,8.13368592]
[1753732463023,0.65,185.16,185.12,56.32023219]
[1753732464321,1e-08,185.18,185.12,56.32023219]
[1753732464520,3.97010752,185.17,185.13,8.13368592]
[1753732464829,1e-08,185.18,185.13,8.13368592]
[1753732464830,8.13368593,185.18,185.13,8.67384688]
[1753732465326,8.13368593,185.18,185.12,48.18654627]
[1753732465327,8.78368592,185.17,185.12,26.0]
[1753732465626,0.65,185.16,185.12,31.40185394]
[1753732466133,8.78368592,185.16,185.12,31.40185394]
[1753732466429,0.65,185.16,185.12,39.53553986]
[1753732467429,8.78368592,185.15,185.1,50.91836989]
[1753732467629,0.65,185.14,185.1,24.91836989]
[1753732468128,0.65,185.16,185.11,8.13368592]
[1753732468347,3.98390566,185.15,185.11,8.67390524]
[1753732468634,8.78368592,185.17,185.11,8.67390524]
[1753732468815,3.98341253,185.16,185.11,8.67390524]
[1753732469015,3.98341253,185.15,185.11,8.67390524]
[1753732469234,0.65,185.16,185.11,8.67390524]
[1753732469411,0.65,185.16,185.12,8.13368592]
[1753732470417,8.13368593,185.18,185.12,8.13368592]
[1753732470635,8.13368593,185.18,185.1,48.18708709]
[1753732470636,8.13368592,185.16,185.1,48.18708709]
[1753732470842,8.13368592,185.14,185.1,26.0]
[1753732471023,0.65,185.15,185.1,26.0]
[1753732471024,0.68,185.13,185.1,39.53610256]
[1753732471227,8.81368592,185.16,185.1,39.53610256]
[1753732472427,8.13368592,185.15,185.1,39.53610256]
[1753732472743,0.68,185.14,185.1,39.53610256]
[1753732473221,0.68,185.13,185.1,39.53610256]
[1753732473829,0.68,185.13,185.1,26.0]
[1753732474619,8.81368592,185.12,185.08,0.06]
[1753732474841,8.13368592,185.11,185.08,0.06]
[1753732475133,8.81368592,185.11,185.08,0.06]
[1753732475344,8.13368592,185.11,185.08,0.06]
[1753732475520,0.68,185.1,185.08,0.06]
[1753732475858,8.13368592,185.09,185.08,0.06]
[1753732476019,8.13368592,185.09,185.07,0.06]
[1753732476341,8.81368592,185.08,185.07,0.06]
[1753732477645,18.83716348,185.08,185.07,0.06]
[1753732478438,48.27368592,185.08,185.07,0.06]
[1753732478814,8.81368592,185.08,185.07,0.06]
[1753732480252,0.68,185.11,185.07,0.06]
[1753732480448,149.0,185.12,185.08,8.13368592]
[1753732480627,8.13368592,185.09,185.07,0.06]
[1753732481028,8.13368592,185.1,185.07,0.06]
[1753732481734,8.13368592,185.11,185.07,0.06]
[1753732482121,8.81368592,185.11,185.07,0.06]
[1753732482859,0.68,185.1,185.07,0.06]
[1753732483237,31.01783167,185.38,185.07,0.06]
[1753732483238,1e-08,185.18,185.1,26.0]
[1753732483555,1e-08,185.18,185.17,26.86549303]
[1753732483755,1e-08,185.18,185.17,66.48549303]
[1753732484066,1e-08,185.18,185.17,66.55549303]
[1753732484857,1e-08,185.18,185.17,71.95593586]
[1753732490245,1e-08,185.18,185.17,32.26593586]
[1753732490448,1e-08,185.18,185.17,71.93593586]
[1753732494651,0.03,185.22,185.2,26.0]
[1753732494857,0.03,185.22,185.21,65.28262067]
[1753732495662,0.03,185.26,185.21,65.28262067]
[1753732495663,0.03,185.26,185.25,16.78468397]
[1753732495846,0.03,185.26,185.25,64.99818095]
[1753732496645,0.03,185.26,185.25,70.39629161]
[1753732500266,0.68,185.34,185.28,26.0]
[1753732500451,0.68,185.34,185.29,56.7843785]
[1753732500649,0.68,185.34,185.3,39.46]
[1753732500650,8.13368592,185.33,185.3,39.46]
[1753732500851,0.68,185.32,185.31,39.48]
[1753732501256,0.69,185.32,185.31,39.48]
[1753732502265,0.69,185.32,185.31,47.61368592]
[1753732502655,0.69,185.35,185.31,53.009963]
[1753732502871,0.69,185.34,185.31,44.87627708]
[1753732503154,0.69,185.33,185.31,47.61368592]
[1753732503547,0.69,185.33,185.31,53.00995066]
[1753732504079,0.69,185.32,185.31,47.61368592]
[1753732504451,0.69,185.32,185.31,39.48]
[1753732505060,0.69,185.32,185.31,39.4]
[1753732505464,0.69,185.34,185.31,47.53368592]
[1753732505661,0.69,185.33,185.32,39.4]
[1753732506271,0.69,185.33,185.32,47.53368592]
[1753732506673,0.69,185.33,185.32,39.4]
[1753732507744,0.69,185.33,185.28,26.0]
[1753732507745,0.69,185.33,185.29,8.13368592]
[1753732508092,8.13368592,185.3,185.25,8.13368592]
[1753732508248,8.13368592,185.3,185.26,39.36]
[1753732508249,0.69,185.29,185.26,39.36]
[1753732508448,0.69,185.28,185.26,47.49368592]
[1753732508649,0.69,185.28,185.27,8.13368592]
[1753732508875,0.69,185.27,185.26,47.49368592]
[1753732509146,5.39524945,185.35,185.26,47.49368592]
[1753732509264,0.69,185.3,185.26,8.13368592]
[1753732509460,0.69,185.3,185.27,39.36]
[1753732509776,8.82368592,185.3,185.27,39.36]
[1753732509976,0.69,185.29,185.27,44.75750967]
[1753732510283,0.69,185.28,185.27,44.75750967]
[1753732510497,8.82368592,185.28,185.24,0.5398402]
[1753732510664,0.69,185.27,185.25,39.34]
[1753732510984,0.69,185.26,185.25,39.34]
[1753732513276,0.69,185.26,185.25,44.73811066]
[1753732513477,0.72,185.36,185.32,26.0]
[1753732513666,0.03,185.36,185.35,13.52888419]
[1753732513865,0.03,185.36,185.35,44.81519827]
[1753732514068,0.72,185.36,185.35,39.42]
[1753732515386,0.03,185.36,185.35,78.94888419]
[1753732516167,0.03,185.36,185.35,95.73356816]
[1753732517286,0.03,185.36,185.35,96.0178913]
[1753732518494,0.03,185.36,185.35,87.59988224]
[1753732518697,0.03,185.36,185.35,95.73356816]
[1753732519767,0.03,185.36,185.35,78.94888419]
[1753732519768,0.72,185.36,185.35,78.94888419]
[1753732520580,0.72,185.36,185.35,73.55368592]
[1753732521796,0.72,185.36,185.35,78.94888419]
[1753732521978,0.03,185.36,185.35,78.94888419]
[1753732522502,0.03,185.36,185.35,95.73356816]
[1753732522718,0.03,185.36,185.35,96.0178913]
[1753732523317,0.03,185.36,185.35,104.15157722]
[1753732523615,0.69,185.45,185.41,8.13368592]
[1753732523781,14.49668592,185.49,185.43,8.13368592]
[1753732524126,0.69,185.44,185.43,8.13368592]
[1753732524677,0.69,185.44,185.43,39.42]
[1753732524886,0.69,185.44,185.4,39.527341]
[1753732525084,0.69,185.44,185.41,39.42]
[1753732525283,8.82368592,185.44,185.37,22.17920416]
[1753732525483,4.64566743,185.43,185.38,73.55368592]
[1753732525696,0.69,185.42,185.39,8.13368592]
[1753732525887,0.69,185.41,185.4,39.42]
[1753732527104,0.69,185.41,185.4,47.55368592]
[1753732527312,3.95944135,185.41,185.4,52.94742917]
[1753732528409,7.92730613,185.41,185.4,52.94742917]
[1753732529125,149.0,185.48,185.4,52.94742917]
[1753732529126,0.69,185.45,185.43,26.0]
[1753732529299,11.7079955,185.47,185.44,26.0]
[1753732529501,7.93783016,185.46,185.45,65.36]
[1753732529793,11.51116987,185.46,185.45,65.36]
[1753732529978,12.20116987,185.46,185.45,65.36]
[1753732530183,20.33485579,185.46,185.45,39.36]
[1753732530611,20.33485579,185.46,185.4,34.13368592]
[1753732530612,20.33485579,185.46,185.44,39.34]
[1753732530807,20.33485579,185.45,185.43,39.34]
[1753732531106,12.22116987,185.44,185.43,39.34]
[1753732531922,25.74750891,185.44,185.41,39.34]
[1753732532082,8.13368592,185.42,185.35,8.13368592]
[1753732532410,8.13368592,185.38,185.36,39.32]
[1753732532596,4.67886476,185.37,185.36,39.32]
[1753732532993,8.64673556,185.37,185.36,39.32]
[1753732534602,7.93673556,185.37,185.36,52.84859312]
[1753732536303,0.71,185.41,185.36,52.84859312]
[1753732536504,8.65415518,185.4,185.36,52.84859312]
[1753732536807,8.13368592,185.41,185.36,52.8485759]
[1753732536808,8.65415518,185.39,185.36,52.8485759]
[1753732537007,8.65415518,185.38,185.36,39.32]
[1753732537314,8.65434613,185.37,185.36,39.32]
[1753732537499,16.75748395,185.37,185.28,8.13368592]
[1753732537708,8.13368592,185.32,185.29,39.26]
[1753732538096,8.13368592,185.32,185.27,13.53121385]
[1753732538420,8.13368592,185.32,185.28,39.26]
[1753732538600,8.13368592,185.33,185.28,52.79078368]
[1753732538924,8.13368592,185.33,185.28,78.79078368]
[1753732539105,8.13368592,185.33,185.28,73.39368592]
[1753732539509,0.71,185.32,185.28,78.79085901]
[1753732539713,8.13368592,185.34,185.29,8.13368592]
[1753732539915,0.71,185.34,185.3,47.37368592]
[1753732540297,6.3055,185.4,185.31,16.78468397]
[1753732540496,8.65762146,185.39,185.35,8.13368592]
[1753732540722,4.68393002,185.38,185.36,39.28]
[1753732540909,3.97393002,185.37,185.36,39.28]
[1753732541217,0.71,185.38,185.36,39.28]
[1753732541425,3.57890413,185.4,185.37,25.01836989]
[1753732541600,0.71,185.43,185.39,8.13368592]
[1753732541924,0.71,185.43,185.4,47.41368592]
[1753732541925,3.97521173,185.42,185.4,47.41368592]
[1753732542423,0.71,185.42,185.4,39.28]
[1753732543498,5.42231954,185.45,185.44,42.78468397]
[1753732543499,0.03,185.45,185.44,42.78468397]
[1753732543713,7.56013966,185.54,185.52,26.0]
[1753732543923,3.97875131,185.53,185.52,26.0]
[1753732544233,3.97875131,185.53,185.52,65.34]
[1753732544398,3.97875131,185.53,185.52,73.47368592]
[1753732544600,3.97875131,185.55,185.52,73.47368592]
[1753732544808,0.71,185.56,185.52,73.47368592]
[1753732546027,0.71,185.55,185.52,73.47368592]
[1753732546197,7.8663,185.6,185.52,78.86391367]
[1753732546394,8.84368592,185.57,185.52,73.47368592]
[1753732546609,8.13368592,185.57,185.52,73.47368592]
[1753732546817,0.71,185.56,185.52,73.47368592]
[1753732547326,0.71,185.56,185.52,65.34]
[1753732547500,0.71,185.56,185.52,70.73010385]
[1753732548111,8.84368592,185.58,185.53,8.13368592]
[1753732548422,8.84368592,185.57,185.54,39.26]
[1753732548595,0.71,185.56,185.54,39.26]
[1753732548797,7.8663,185.6,185.54,39.26]
[1753732548798,8.13368592,185.58,185.54,39.26]
[1753732549047,8.84368592,185.58,185.54,39.26]
[1753732549407,0.71,185.57,185.54,39.26]
[1753732550527,0.71,185.62,185.56,8.13368592]
[1753732550726,4.67352166,185.61,185.57,39.22]
[1753732551033,8.13368592,185.62,185.57,39.22]
[1753732551034,8.13368592,185.59,185.57,39.22]
[1753732551399,8.84368592,185.59,185.57,39.22]
[1753732551598,0.71,185.59,185.57,39.22]
[1753732551802,8.13368592,185.6,185.57,39.22]
[1753732552224,8.84368592,185.6,185.57,39.22]
[1753732552530,0.71,185.6,185.57,39.22]
[1753732552703,8.84368592,185.6,185.57,39.22]
[1753732552902,8.13368592,185.6,185.57,39.22]
[1753732553115,0.71,185.59,185.57,39.22]
[1753732554730,0.71,185.58,185.57,39.22]
[1753732557531,8.13368592,185.59,185.57,39.22]
[1753732557908,8.84368592,185.59,185.57,39.22]
[1753732558104,8.13368592,185.58,185.52,5.49019602]
[1753732558313,8.13368592,185.56,185.53,39.16]
[1753732558539,0.71,185.55,185.54,39.16]
[1753732559215,8.84368592,185.55,185.54,39.16]
[1753732559809,8.84368592,185.55,185.52,39.16]
[1753732560037,0.71,185.58,185.52,39.16]
[1753732560226,8.13368592,185.56,185.52,39.16]
[1753732560409,8.13368592,185.53,185.52,39.16]
[1753732560735,8.84368592,185.53,185.5,39.16]
[1753732560930,8.13368592,185.51,185.5,39.16]
[1753732561140,8.84368592,185.52,185.5,39.16]
[1753732561333,0.71,185.52,185.5,39.16]
[1753732562411,8.13368592,185.53,185.5,39.16]
[1753732562720,8.84368592,185.53,185.5,39.16]
[1753732564029,8.13368592,185.52,185.47,39.52535602]
[1753732564330,8.13368592,185.52,185.48,39.16]
[1753732564331,8.13368592,185.51,185.48,39.16]
[1753732564732,149.0,185.58,185.51,26.0]
[1753732564916,8.13368592,185.57,185.52,39.16]
[1753732565109,8.84368592,185.57,185.52,39.16]
[1753732565312,8.13368592,185.57,185.52,39.16]
[1753732565532,8.13368592,185.53,185.51,26.0]
[1753732565725,0.71,185.52,185.51,26.0]
[1753732565915,149.0,185.58,185.51,26.0]
[1753732566233,149.0,185.58,185.53,8.13368592]
[1753732566448,0.71,185.57,185.54,39.16]
[1753732566670,8.84368592,185.56,185.54,39.16]
[1753732566840,0.71,185.56,185.54,39.16]
[1753732567146,154.38859994,185.58,185.54,39.16]
[1753732567448,8.13368592,185.56,185.54,39.16]
[1753732567815,154.38859994,185.58,185.49,16.78468397]
[1753732567816,8.84368592,185.55,185.49,8.13368592]
[1753732568146,8.84368592,185.55,185.5,47.29368592]
[1753732568446,8.13368592,185.55,185.5,47.29368592]
[1753732568636,8.84368592,185.55,185.5,47.29368592]
[1753732568842,0.71,185.54,185.5,39.16]
[1753732569216,0.71,185.54,185.5,47.29368592]
[1753732569627,8.13368592,185.51,185.45,5.39228902]
[1753732569918,8.84368592,185.51,185.46,39.16]
[1753732570117,0.71,185.5,185.49,26.0]
[1753732570318,8.13368592,185.51,185.49,26.0]
[1753732570542,8.84368592,185.51,185.49,26.0]
[1753732571259,8.13368592,185.51,185.49,26.0]
[1753732571418,8.13368592,185.53,185.49,65.16]
[1753732571940,8.13368592,185.53,185.49,70.55106474]
[1753732572129,8.13368592,185.56,185.5,8.13368592]
[1753732572854,8.84368592,185.55,185.5,8.13368592]
[1753732573082,0.71,185.54,185.5,13.52443054]
[1753732573375,0.03,185.61,185.55,42.78468397]
[1753732573678,0.03,185.61,185.6,24.91836989]
[1753732573973,0.03,185.61,185.6,65.24]
[1753732574266,0.03,185.61,185.6,73.37368592]
[1753732574665,0.03,185.61,185.6,73.35368592]
[1753732574861,0.03,185.61,185.6,65.22]
[1753732575042,0.03,185.61,185.6,78.74161695]
[1753732576270,0.03,185.61,185.6,95.52630092]
[1753732576854,0.03,185.61,185.6,70.60793103]
[1753732577046,0.03,185.61,185.6,78.74161695]
[1753732577669,0.03,185.61,185.6,70.60793103]
[1753732578950,0.03,185.61,185.6,78.74161695]
[1753732580559,0.03,185.61,185.6,73.35368592]
[1753732582357,0.03,185.61,185.6,78.74161695]
[1753732582752,0.03,185.61,185.6,95.62630092]
[1753732584752,0.03,185.61,185.6,31.38793103]
[1753732584959,0.03,185.61,185.6,70.52793103]
[1753732585965,0.03,185.61,185.6,65.14]
[1753732586374,0.74,185.61,185.6,65.14]
[1753732587169,0.03,185.61,185.6,70.52793103]
[1753732587376,0.03,185.61,185.6,78.66161695]
[1753732589073,0.03,185.61,185.6,65.14]
[1753732589272,0.74,185.61,185.6,65.14]
[1753732589791,9.66883973,185.61,185.54,16.78468397]
[1753732589994,4.94403794,185.59,185.55,39.14]
[1753732590302,0.71,185.58,185.55,39.14]
[1753732590795,0.71,185.58,185.55,44.52934344]
[1753732592074,5.60403794,185.58,185.55,44.52934344]
[1753732592268,4.94403794,185.6,185.55,44.52934344]
[1753732592465,0.03,185.61,185.57,4.94403794]
[1753732592673,4.01559359,185.61,185.58,44.08403794]
[1753732592874,0.03,185.61,185.59,39.14]
[1753732593494,0.03,185.61,185.6,8.0584872]
[1753732594064,0.03,185.61,185.6,13.44641823]
[1753732595901,8.7484872,185.61,185.6,39.14]
[1753732596102,8.7484872,185.61,185.52,8.0584872]
[1753732596103,12.73406097,185.61,185.52,8.0584872]
[1753732596271,8.0584872,185.56,185.53,39.14]
[1753732596471,0.66,185.55,185.53,39.14]
[1753732597277,8.7184872,185.54,185.47,0.53917075]
[1753732597477,8.7184872,185.54,185.45,1.6529]
[1753732597478,8.0584872,185.5,185.48,39.14]
[1753732597688,0.66,185.49,185.48,39.14]
[1753732597897,8.7184872,185.49,185.48,39.14]
[1753732598380,0.66,185.49,185.48,39.14]
[1753732600304,7.6089,185.54,185.48,39.14]
[1753732600600,8.0584872,185.56,185.5,8.0584872]
[1753732600773,8.0584872,185.56,185.51,39.14]
[1753732600975,8.7184872,185.56,185.51,39.14]
[1753732601177,0.66,185.55,185.51,39.14]
[1753732601597,8.0584872,185.55,185.51,39.14]
[1753732601788,8.0584872,185.52,185.48,26.0]
[1753732602101,0.66,185.51,185.49,39.14]
[1753732602306,0.66,185.5,185.49,39.14]
[1753732602488,0.66,185.5,185.41,1.7129]
[1753732602805,0.66,185.5,185.43,26.0]
[1753732602989,0.66,185.5,185.42,39.14]
[1753732603197,8.0584872,185.45,185.42,39.14]
[1753732603506,0.66,185.57,185.46,0.28432314]
[1753732603682,8.0584872,185.55,185.5,26.0]
[1753732604089,0.66,185.54,185.5,26.0]
[1753732604305,0.66,185.54,185.5,31.39082833]
[1753732604508,8.0584872,185.56,185.5,39.44931553]
[1753732604710,8.0584872,185.55,185.5,34.0584872]
[1753732604884,0.66,185.54,185.5,39.44929596]
[1753732605088,8.0584872,185.51,185.45,8.0584872]
[1753732605300,8.0584872,185.5,185.45,34.0584872]
[1753732605494,0.66,185.49,185.45,34.0584872]
[1753732605694,0.66,185.52,185.47,8.0584872]
[1753732605896,8.0584872,185.54,185.46,56.06468397]
[1753732606094,8.0584872,185.54,185.48,8.0584872]
[1753732606408,8.0584872,185.54,185.49,5.3911262]
[1753732606804,0.66,185.53,185.49,5.3911262]
[1753732607194,8.0584872,185.53,185.49,5.3911262]
[1753732607396,8.7184872,185.52,185.46,55.96468397]
[1753732607701,8.7184872,185.52,185.47,13.45019475]
[1753732608199,0.66,185.52,185.47,13.45019475]
[1753732608408,8.7184872,185.52,185.47,13.45019475]
[1753732609314,0.66,185.51,185.46,39.18]
[1753732609517,0.66,185.51,185.46,44.57199595]
[1753732609518,8.0584872,185.49,185.46,44.57199595]
[1753732609824,8.7184872,185.49,185.46,5.39199595]
[1753732609992,0.66,185.49,185.46,5.39199595]
[1753732610393,8.7184872,185.51,185.46,13.45048315]
[1753732610799,0.66,185.51,185.46,13.45048315]
[1753732610994,188.16,185.55,185.46,43.7151628]
[1753732611214,0.66,185.54,185.48,8.0584872]
[1753732611394,8.0584872,185.53,185.48,8.0584872]
[1753732611594,8.7184872,185.53,185.48,8.0584872]
[1753732612009,0.66,185.53,185.48,8.0584872]
[1753732612500,0.66,185.57,185.52,8.0584872]
[1753732612692,0.66,185.57,185.54,8.0584872]
[1753732612890,0.66,185.57,185.53,8.0584872]
[1753732613108,0.66,185.57,185.52,44.54999379]
[1753732613308,0.03,185.58,185.52,44.54999379]
[1753732613309,0.66,185.56,185.54,8.0584872]
[1753732614393,0.66,185.56,185.52,44.54999379]
[1753732614394,0.66,185.55,185.53,8.0584872]
[1753732614808,0.03,185.58,185.54,8.0584872]
[1753732615020,0.66,185.57,185.54,8.0584872]
[1753732615222,0.03,185.58,185.54,8.0584872]
[1753732615431,0.66,185.56,185.54,8.0584872]
[1753732616022,0.66,185.56,185.53,5.38994478]
[1753732616319,0.66,185.56,185.53,13.44843198]
[1753732617500,0.03,185.58,185.47,8.0584872]
[1753732617501,8.0584872,185.54,185.47,8.0584872]
[1753732617710,39.16,185.57,185.46,47.2384872]